[Event "FIDE WCCC Open-12 2024"]
[Site "Montesilvano"]
[Date "2024.11.24"]
[Round "9.1"]
[White "Lacan Rus, David"]
[Black "Smirnov, Mark"]
[Result "0-1"]
[ECO "A18"]
[WhiteElo "2274"]
[BlackElo "2300"]
[Annotator "RC"]
[PlyCount "88"]
[EventDate "2024.11.18"]
[EventType "swiss"]
[EventCountry "ITA"]
[SourceTitle "playchess.com"]
[Source "ChessBase"]
[SourceQuality "1"]
[TimeControl "5400+30"]

1. c4 {[%emt 0:00:01]} Nf6 {[%emt 0:00:53]} 2. Nc3 {[%emt 0:00:08]} e6 {[%emt 0:01:06]} 3. e4 {[%emt 0:00:07]} d5 {[%emt 0:06:06]} 4. cxd5 {[%emt 0:00:08]} exd5 {[%emt 0:00:03]} 5. e5 {[%emt 0:00:01]} Ne4 {[%emt 0:00:41]} 6. d4 {[%emt 0:00:23]} Bb4 {[%emt 0:04:58]} 7. Bd2 {[%emt 0:03:59]} Nxd2 {[%emt 0:04:41]} 8. Qxd2 {[%emt 0:00:02]} c5 {[%emt 0:01:41]} 9. Nf3 {[%emt 0:06:56]} Nc6 {[%emt 0:13:52]} 10. Bb5 {[%emt 0:08:18]} Bg4 {[%emt 1:01:29]} 11. a3 {[%emt 0:09:28]} Ba5 {[%emt 0:00:00]} 12. Rb1 {[%emt 0:09:02]} Bxf3 {[%emt 0:00:00]} 13. gxf3 {[%emt 0:00:38]} cxd4 {[%emt 0:00:00]} 14. Qxd4 {[%emt 0:01:54]} O-O {[%emt 0:00:00]} 15. Bxc6 {[%emt 0:00:09]} bxc6 {[%emt 0:00:00]} 16. O-O {[%emt 0:01:38]} Qg5+ {[%emt 0:00:00]} 17. Kh1 {[%emt 0:00:14]} Bb6 {[%emt 0:00:00]} 18. f4 {[%emt 0:56:24]} Qf5 {[%emt 0:00:00]} 19. Qd2 {[%emt 0:00:00]} f6 {[%emt 0:00:00]} 20. Rbe1 {[%emt 0:00:00]} fxe5 {[%emt 0:00:00]} 21. Rxe5 {[%emt 0:00:00]} Qh3 {[%emt 0:00:00]} 22. Qe2 {[%emt 0:00:00]} Rxf4 {[%emt 0:00:00]} 23. Re7 {[%emt 0:02:30]} Raf8 {[%emt 0:06:30]} 24. Rg1 {[%emt 0:00:00]} g6 {[%emt 0:00:30]} 25. Rg3 {[%emt 0:00:00]} Qf5 {[%emt 0:00:00]} 26. Re5 {[%emt 0:00:00]} Qf6 {[%emt 0:00:00]} 27. Re6 {[%emt 0:00:00]} Qh4 {[%emt 0:01:30]} 28. f3 {[%emt 0:02:30]} R4f6 {[%emt 0:00:30]} 29. Re7 {[%emt 0:00:30]} Qf4 {[%emt 0:00:30]} 30. Kg2 {[%emt 0:00:00]} R6f7 {[%emt 0:00:00]} 31. Re6 {[%emt 0:00:00]} Rf6 {[%emt 0:00:00]} 32. Re7 {[%emt 0:00:00]} Bc5 {[%emt 0:00:00]} 33. Rb7 {[%emt 0:00:00]} R6f7 {[%emt 0:01:03]} 34. Qe6 {[%emt 0:00:00]} Qd6 {[%emt 0:00:48]} 35. Qxd6 {[%emt 0:00:00]} Bxd6 {[%emt 0:00:30]} 36. Rxf7 {[%emt 0:00:00]} Rxf7 {[%emt 0:00:00]} 37. Rg4 {[%emt 0:00:00]} Rf4 {[%emt 0:00:07]} 38. b4 {[%emt 0:00:00]} Rxg4+ {[%emt 0:01:27]} 39. fxg4 {[%emt 0:00:00]} Be5 {[%emt 0:00:01]} 40. Na4 {[%emt 0:00:00]} Bd4 {[%emt 0:00:46]} 41. Kf3 {[%emt 0:00:00]} Kf7 {[%emt 0:00:04]} 42. Ke2 {[%emt 0:00:00]} Kf6 {[%emt 0:00:08]} 43. Kd3 {[%emt 0:01:48]} Ke5 {[%emt 0:00:18]} 44. h4 {[%emt 0:00:47]} h6 {[%emt 0:00:30]} 0-1

[Event "FIDE WCCC Open-12 2024"]
[Site "Montesilvano"]
[Date "2024.11.24"]
[Round "9.2"]
[White "Radzimski, Antoni"]
[Black "Liu, Patrick"]
[Result "1/2-1/2"]
[ECO "B15"]
[WhiteElo "2188"]
[BlackElo "2192"]
[Annotator "RC"]
[PlyCount "148"]
[EventDate "2024.11.18"]
[EventType "swiss"]
[EventCountry "ITA"]
[SourceTitle "playchess.com"]
[Source "ChessBase"]
[SourceQuality "1"]
[TimeControl "5400+30"]

1. e4 {[%emt 0:00:12]} c6 {[%emt 0:00:02]} 2. Nc3 {[%emt 0:00:15]} d5 {[%emt 0:00:12]} 3. d4 {[%emt 0:01:03]} dxe4 {[%emt 0:00:11]} 4. Nxe4 {[%emt 0:00:05]} Nf6 {[%emt 0:00:32]} 5. Nxf6+ {[%emt 0:01:00]} exf6 {[%emt 0:00:06]} 6. c3 {[%emt 0:00:43]} Bd6 {[%emt 0:00:11]} 7. Bd3 {[%emt 0:00:11]} O-O {[%emt 0:00:11]} 8. Qc2 {[%emt 0:00:04]} Re8+ {[%emt 0:00:13]} 9. Ne2 {[%emt 0:00:06]} h5 {[%emt 0:00:10]} 10. O-O {[%emt 0:00:48]} h4 {[%emt 0:00:12]} 11. h3 {[%emt 0:01:05]} Nd7 {[%emt 0:00:28]} 12. Bd2 {[%emt 0:02:15]} Nf8 {[%emt 0:00:22]} 13. Rae1 {[%emt 0:00:11]} Bc7 {[%emt 0:01:15]} 14. f4 {[%emt 0:00:16]} g6 {[%emt 0:03:05]} 15. f5 {[%emt 0:00:17]} g5 {[%emt 0:00:02]} 16. Qd1 {[%emt 0:00:23]} Qd6 {[%emt 0:02:42]} 17. Nf4 {[%emt 0:04:58]} Rxe1 {[%emt 0:16:10]} 18. Rxe1 {[%emt 0:03:38]} Bd7 {[%emt 0:11:59]} 19. Nh5 {[%emt 0:17:58]} Qh2+ {[%emt 0:22:28]} 20. Kf1 {[%emt 0:01:31]} Nh7 {[%emt 0:01:57]} 21. Qg4 {[%emt 0:07:29]} Kf8 {[%emt 0:00:59]} 22. c4 {[%emt 0:13:19]} Re8 {[%emt 0:08:35]} 23. Rxe8+ {[%emt 0:02:28]} Bxe8 {[%emt 0:00:39]} 24. Ke2 {[%emt 0:04:38]} c5 {[%emt 0:11:49]} 25. Be3 {[%emt 0:05:32]} cxd4 {[%emt 0:02:55]} 26. Bxd4 {[%emt 0:00:15]} Be5 {[%emt 0:00:27]} 27. Bc5+ {[%emt 0:02:46]} Kg8 {[%emt 0:01:29]} 28. b3 {[%emt 0:03:58]} Bc3 {[%emt 0:06:00]} 29. Kf2 {[%emt 0:02:39]} Qe5 {[%emt 0:04:24]} 30. Be3 {[%emt 0:00:48]} Bc6 {[%emt 0:00:48]} 31. Nf4 {[%emt 0:05:10]} Bd4 {[%emt 0:01:49]} 32. Nd5 {[%emt 0:00:12]} Bxe3+ {[%emt 0:00:18]} 33. Nxe3 {[%emt 0:00:09]} Nf8 {[%emt 0:00:30]} 34. Qe2 {[%emt 0:02:05]} Qh2 {[%emt 0:00:46]} 35. b4 {[%emt 0:01:54]} b6 {[%emt 0:00:37]} 36. Qd2 {[%emt 0:05:23]} Nd7 {[%emt 0:00:48]} 37. Bf1 {[%emt 0:02:31]} Ne5 {[%emt 0:00:29]} 38. Qd4 {[%emt 0:00:16]} Kg7 {[%emt 0:01:10]} 39. Ke2 {[%emt 0:00:24]} Bf3+ {[%emt 0:00:28]} 40. Ke1 {[%emt 0:01:14]} Bxg2 {[%emt 0:02:10]} 41. Bxg2 {[%emt 0:00:10]} Qxg2 {[%emt 0:00:14]} 42. Nxg2 {[%emt 0:00:05]} Nf3+ {[%emt 0:00:01]} 43. Kf2 {[%emt 0:00:19]} Nxd4 {[%emt 0:00:03]} 44. Ne3 {[%emt 0:00:07]} Kf8 {[%emt 0:00:44]} 45. c5 {[%emt 0:00:55]} bxc5 {[%emt 0:00:20]} 46. bxc5 {[%emt 0:00:04]} Ke8 {[%emt 0:00:28]} 47. Nd5 {[%emt 0:01:46]} Nxf5 {[%emt 0:00:15]} 48. Nxf6+ {[%emt 0:00:46]} Ke7 {[%emt 0:00:13]} 49. Ne4 {[%emt 0:00:22]} f6 {[%emt 0:00:15]} 50. Kf3 {[%emt 0:00:31]} Nd4+ {[%emt 0:01:03]} 51. Ke3 {[%emt 0:00:47]} Ne6 {[%emt 0:00:14]} 52. c6 {[%emt 0:00:22]} f5 {[%emt 0:00:55]} 53. c7 {[%emt 0:00:22]} Kd7 {[%emt 0:00:21]} 54. c8=Q+ {[%emt 0:00:12]} Kxc8 {[%emt 0:00:09]} 55. Nd6+ {[%emt 0:00:02]} Kd7 {[%emt 0:00:26]} 56. Nxf5 {[%emt 0:00:09]} Ke8 {[%emt 0:02:21]} 57. Kf3 {[%emt 0:00:31]} Kf7 {[%emt 0:00:29]} 58. Kg4 {[%emt 0:00:31]} Kf6 {[%emt 0:00:11]} 59. Nd6 {[%emt 0:00:31]} Nc5 {[%emt 0:00:27]} 60. Nb5 {[%emt 0:00:43]} Nd3 {[%emt 0:00:53]} 61. Nxa7 {[%emt 0:01:48]} Nf2+ {[%emt 0:00:18]} 62. Kf3 {[%emt 0:00:08]} Nxh3 {[%emt 0:00:08]} 63. Nc6 {[%emt 0:00:56]} Nf4 {[%emt 0:00:22]} 64. a4 {[%emt 0:00:48]} h3 {[%emt 0:01:15]} 65. Kg3 {[%emt 0:00:10]} g4 {[%emt 0:00:25]} 66. Nd4 {[%emt 0:02:01]} Ke5 {[%emt 0:00:47]} 67. Nc2 {[%emt 0:00:27]} Ne2+ {[%emt 0:00:30]} 68. Kh2 {[%emt 0:00:06]} Kf4 {[%emt 0:00:28]} 69. a5 {[%emt 0:01:05]} Kf3 {[%emt 0:00:31]} 70. a6 {[%emt 0:01:17]} Kf2 {[%emt 0:00:18]} 71. Ne3 {[%emt 0:00:33]} g3+ {[%emt 0:00:45]} 72. Kxh3 {[%emt 0:00:17]} Nf4+ {[%emt 0:00:30]} 73. Kh4 {[%emt 0:00:34]} Ne6 {[%emt 0:00:28]} 74. a7 {[%emt 0:00:17]} Nc7 {[%emt 0:00:05]} 1/2-1/2

[Event "FIDE WCCC Open-12 2024"]
[Site "Montesilvano"]
[Date "2024.11.24"]
[Round "9.3"]
[White "Birmenko, Nikolay"]
[Black "Golis, Wiktor"]
[Result "0-1"]
[ECO "B12"]
[WhiteElo "2084"]
[BlackElo "2343"]
[Annotator "RC"]
[PlyCount "72"]
[EventDate "2024.11.18"]
[EventType "swiss"]
[EventCountry "ITA"]
[SourceTitle "playchess.com"]
[Source "ChessBase"]
[SourceQuality "1"]
[TimeControl "5400+30"]

1. e4 {[%emt 0:00:03]} c6 {[%emt 0:00:10]} 2. d4 {[%emt 0:00:09]} d5 {[%emt 0:00:04]} 3. e5 {[%emt 0:00:04]} c5 {[%emt 0:00:10]} 4. Nf3 {[%emt 0:00:06]} cxd4 {[%emt 0:02:19]} 5. Qxd4 {[%emt 0:00:04]} Nc6 {[%emt 0:01:17]} 6. Qf4 {[%emt 0:00:24]} g6 {[%emt 0:00:18]} 7. Nc3 {[%emt 0:10:24]} d4 {[%emt 0:03:13]} 8. Bc4 {[%emt 0:05:26]} Bf5 {[%emt 0:00:35]} 9. Nb5 {[%emt 0:09:08]} Rc8 {[%emt 0:27:11]} 10. O-O {[%emt 0:10:26]} a6 {[%emt 0:09:29]} 11. Na3 {[%emt 0:07:27]} e6 {[%emt 0:05:37]} 12. Ng5 {[%emt 0:08:54]} h5 {[%emt 0:15:07]} 13. Bd3 {[%emt 0:05:06]} Nge7 {[%emt 0:04:32]} 14. Nc4 {[%emt 0:03:47]} Nd5 {[%emt 0:00:32]} 15. Qf3 {[%emt 0:00:26]} b5 {[%emt 0:03:05]} 16. Bxf5 {[%emt 0:01:03]} gxf5 {[%emt 0:00:25]} 17. Nd6+ {[%emt 0:00:06]} Bxd6 {[%emt 0:00:10]} 18. exd6 {[%emt 0:00:05]} Qxd6 {[%emt 0:02:18]} 19. a4 {[%emt 0:02:19]} Ne5 {[%emt 0:11:43]} 20. Qe2 {[%emt 0:00:26]} b4 {[%emt 0:03:48]} 21. h3 {[%emt 0:02:19]} f6 {[%emt 0:03:12]} 22. Nf3 {[%emt 0:00:24]} Nxf3+ {[%emt 0:00:14]} 23. Qxf3 {[%emt 0:00:04]} Rxc2 {[%emt 0:00:36]} 24. Qd3 {[%emt 0:01:35]} Qc6 {[%emt 0:01:34]} 25. Re1 {[%emt 0:00:59]} Kf7 {[%emt 0:01:32]} 26. Bd2 {[%emt 0:01:58]} Qc4 {[%emt 0:00:37]} 27. Qg3 {[%emt 0:02:15]} Rxd2 {[%emt 0:01:12]} 28. Qd6 {[%emt 0:02:06]} Re8 {[%emt 0:00:15]} 29. Qg3 {[%emt 0:00:44]} d3 {[%emt 0:01:07]} 30. Qf3 {[%emt 0:00:05]} Rh8 {[%emt 0:01:15]} 31. g3 {[%emt 0:00:25]} h4 {[%emt 0:00:35]} 32. Rac1 {[%emt 0:00:36]} Rc2 {[%emt 0:00:17]} 33. Rcd1 {[%emt 0:00:03]} hxg3 {[%emt 0:00:12]} 34. fxg3 {[%emt 0:00:06]} Qd4+ {[%emt 0:00:37]} 35. Kf1 {[%emt 0:00:06]} Rxh3 {[%emt 0:00:11]} 36. Rxd3 {[%emt 0:00:10]} Rh1+ {[%emt 0:00:22]} 0-1

[Event "FIDE WCCC Open-12 2024"]
[Site "Montesilvano"]
[Date "2024.11.24"]
[Round "9.4"]
[White "Negrean, Andrei"]
[Black "Stepanyan, Davit"]
[Result "1-0"]
[ECO "E10"]
[WhiteElo "2255"]
[BlackElo "2011"]
[Annotator "RC"]
[PlyCount "81"]
[EventDate "2024.11.18"]
[EventType "swiss"]
[EventCountry "ITA"]
[SourceTitle "playchess.com"]
[Source "ChessBase"]
[SourceQuality "1"]
[TimeControl "5400+30"]

1. d4 {[%emt 0:00:05]} Nf6 {[%emt 0:00:15]} 2. c4 {[%emt 0:00:16]} e6 {[%emt 0:00:05]} 3. Nf3 {[%emt 0:00:10]} c5 {[%emt 0:00:20]} 4. d5 {[%emt 0:00:15]} b5 {[%emt 0:00:49]} 5. Bf4 {[%emt 0:01:18]} exd5 {[%emt 0:02:30]} 6. cxd5 {[%emt 0:00:19]} d6 {[%emt 0:00:37]} 7. e4 {[%emt 0:01:05]} a6 {[%emt 0:02:59]} 8. Nbd2 {[%emt 0:02:03]} Nbd7 {[%emt 0:00:51]} 9. a4 {[%emt 0:02:53]} Rb8 {[%emt 0:00:53]} 10. axb5 {[%emt 0:05:13]} axb5 {[%emt 0:00:07]} 11. Bd3 {[%emt 0:02:43]} Be7 {[%emt 0:03:23]} 12. Qe2 {[%emt 0:03:01]} c4 {[%emt 0:09:53]} 13. Bc2 {[%emt 0:02:50]} Nc5 {[%emt 0:00:48]} 14. Nd4 {[%emt 0:02:11]} Bd7 {[%emt 0:00:51]} 15. O-O {[%emt 0:09:31]} O-O {[%emt 0:01:37]} 16. b4 {[%emt 0:13:23]} cxb3 {[%emt 0:02:05]} 17. N2xb3 {[%emt 0:01:31]} Nxb3 {[%emt 0:00:49]} 18. Bxb3 {[%emt 0:03:29]} Re8 {[%emt 0:01:15]} 19. Rfc1 {[%emt 0:07:27]} Rc8 {[%emt 0:07:23]} 20. Nc6 {[%emt 0:12:24]} Bxc6 {[%emt 0:02:40]} 21. dxc6 {[%emt 0:00:07]} Bf8 {[%emt 0:12:27]} 22. Bg5 {[%emt 0:02:26]} Re5 {[%emt 0:09:11]} 23. Bxf6 {[%emt 0:02:34]} Qxf6 {[%emt 0:00:36]} 24. Ra7 {[%emt 0:02:05]} Rc5 {[%emt 0:04:35]} 25. Rxc5 {[%emt 0:06:40]} dxc5 {[%emt 0:00:42]} 26. Qxb5 {[%emt 0:01:10]} Kh8 {[%emt 0:07:05]} 27. Bd5 {[%emt 0:03:56]} Bd6 {[%emt 0:08:02]} 28. g3 {[%emt 0:00:59]} h6 {[%emt 0:02:22]} 29. Qb7 {[%emt 0:02:57]} Qd8 {[%emt 0:02:03]} 30. Qxf7 {[%emt 0:01:14]} Rc7 {[%emt 0:00:11]} 31. Rxc7 {[%emt 0:00:32]} Bxc7 {[%emt 0:00:04]} 32. Kg2 {[%emt 0:00:45]} Kh7 {[%emt 0:01:17]} 33. Be6 {[%emt 0:00:16]} Kh8 {[%emt 0:00:41]} 34. h4 {[%emt 0:00:22]} Be5 {[%emt 0:00:14]} 35. f4 {[%emt 0:00:45]} Bc7 {[%emt 0:00:28]} 36. e5 {[%emt 0:00:26]} Bb6 {[%emt 0:00:18]} 37. Bd7 {[%emt 0:00:21]} Qa8 {[%emt 0:00:26]} 38. Kh3 {[%emt 0:00:33]} Bc7 {[%emt 0:00:40]} 39. h5 {[%emt 0:01:22]} Qb8 {[%emt 0:00:35]} 40. Be8 {[%emt 0:00:15]} Qc8+ {[%emt 0:00:26]} 41. g4 {[%emt 0:00:17]} 1-0

[Event "FIDE WCCC Open-12 2024"]
[Site "Montesilvano"]
[Date "2024.11.24"]
[Round "9.5"]
[White "Wijerathna, Vinuka Dihain"]
[Black "Aansh Nandan Nerurkar"]
[Result "0-1"]
[ECO "B53"]
[WhiteElo "2004"]
[BlackElo "2247"]
[Annotator "RC"]
[PlyCount "90"]
[EventDate "2024.11.18"]
[EventType "swiss"]
[EventCountry "ITA"]
[SourceTitle "playchess.com"]
[Source "ChessBase"]
[SourceQuality "1"]
[TimeControl "5400+30"]

1. e4 {[%emt 0:02:30]} c5 {[%emt 0:00:07]} 2. Nf3 {[%emt 0:00:20]} d6 {[%emt 0:00:18]} 3. d4 {[%emt 0:00:06]} cxd4 {[%emt 0:00:06]} 4. Qxd4 {[%emt 0:00:02]} Nc6 {[%emt 0:00:10]} 5. Bb5 {[%emt 0:00:06]} Bd7 {[%emt 0:00:05]} 6. Bxc6 {[%emt 0:00:09]} Bxc6 {[%emt 0:00:08]} 7. Nc3 {[%emt 0:00:24]} Nf6 {[%emt 0:00:08]} 8. Bg5 {[%emt 0:00:17]} e6 {[%emt 0:00:15]} 9. O-O-O {[%emt 0:00:53]} Be7 {[%emt 0:00:43]} 10. Qd3 {[%emt 0:06:49]} Qa5 {[%emt 0:01:55]} 11. h4 {[%emt 0:00:28]} h6 {[%emt 0:01:28]} 12. Bd2 {[%emt 0:00:33]} d5 {[%emt 0:04:44]} 13. e5 {[%emt 0:17:10]} Ng4 {[%emt 0:02:48]} 14. Rhf1 {[%emt 1:07:43]} Bc5 {[%emt 1:24:35]} 15. Be1 {[%emt 0:00:00]} Qb6 {[%emt 0:00:00]} 16. Qe2 {[%emt 0:00:00]} h5 {[%emt 0:00:00]} 17. Qd2 {[%emt 0:00:00]} O-O-O {[%emt 0:00:00]} 18. Qf4 {[%emt 0:00:00]} d4 {[%emt 0:00:00]} 19. Ne4 {[%emt 0:00:00]} Bxe4 {[%emt 0:00:00]} 20. Qxe4 {[%emt 0:00:00]} Qa6 {[%emt 0:00:00]} 21. Rd3 {[%emt 0:00:00]} Qxa2 {[%emt 0:00:00]} 22. Nd2 {[%emt 0:00:00]} Rd5 {[%emt 0:00:00]} 23. f4 {[%emt 0:00:00]} Ne3 {[%emt 0:00:00]} 24. Rf3 {[%emt 0:00:00]} Kb8 {[%emt 0:00:00]} 25. Bf2 {[%emt 0:00:00]} Qa1+ {[%emt 0:00:00]} 26. Nb1 {[%emt 0:00:00]} Nc4 {[%emt 0:00:00]} 27. Rb3 {[%emt 0:00:00]} Qxb1+ {[%emt 0:00:00]} 28. Kxb1 {[%emt 0:00:00]} Nd2+ {[%emt 0:00:00]} 29. Kc1 {[%emt 0:00:00]} Nxe4 {[%emt 0:00:00]} 30. Be1 {[%emt 0:00:00]} f5 {[%emt 0:00:00]} 31. Rfd3 {[%emt 0:00:00]} Rc8 {[%emt 0:00:00]} 32. Kb1 {[%emt 0:00:00]} Bb6 {[%emt 0:00:00]} 33. Rd1 {[%emt 0:00:00]} Rdc5 {[%emt 0:00:00]} 34. Rc1 {[%emt 0:00:00]} Ba5 {[%emt 0:00:00]} 35. Bxa5 {[%emt 0:00:00]} Rxa5 {[%emt 0:00:00]} 36. Rd1 {[%emt 0:00:00]} Rd5 {[%emt 0:00:00]} 37. Rb4 {[%emt 0:00:00]} Rcd8 {[%emt 0:00:00]} 38. Rb3 {[%emt 0:00:00]} Kc7 {[%emt 0:00:00]} 39. Kc1 {[%emt 0:00:00]} b5 {[%emt 0:00:00]} 40. Rf3 {[%emt 0:00:00]} a5 {[%emt 0:00:00]} 41. Kb1 {[%emt 0:00:00]} Kb6 {[%emt 0:00:00]} 42. Kc1 {[%emt 0:00:00]} a4 {[%emt 0:00:00]} 43. Kb1 {[%emt 0:00:00]} b4 {[%emt 0:00:00]} 44. Kc1 {[%emt 0:00:00]} Kb5 {[%emt 0:00:00]} 45. Kb1 {[%emt 0:00:00]} Ra8 {[%emt 0:00:00]} 0-1

[Event "FIDE WCCC Open-12 2024"]
[Site "Montesilvano"]
[Date "2024.11.24"]
[Round "9.6"]
[White "Ambartsumian, Tyhran"]
[Black "Petroff, Vlad"]
[Result "1-0"]
[ECO "B13"]
[WhiteElo "2123"]
[BlackElo "2079"]
[Annotator "NA RC"]
[PlyCount "67"]
[EventDate "2024.11.18"]
[EventType "swiss"]
[EventCountry "ITA"]
[SourceTitle "playchess.com"]
[Source "ChessBase"]
[SourceQuality "1"]
[TimeControl "5400+30"]

1. e4 {[%emt 0:00:36]} c6 {[%emt 0:00:10]} 2. d4 {[%emt 0:00:04]} d5 {[%emt 0:00:05]} 3. exd5 {[%emt 0:00:05]} cxd5 {[%emt 0:00:08]} 4. Bd3 {[%emt 0:00:04]} Nc6 {[%emt 0:00:17]} 5. c3 {[%emt 1:32:11]} Qc7 {[%emt 0:01:15]} 6. h3 {[%emt 0:00:00]} g6 {[%emt 0:03:08]} 7. Ne2 {[%emt 0:00:00]} Bf5 {[%emt 0:01:36]} 8. Bf4 {[%emt 0:00:00]} Qb6 {[%emt 0:02:20]} 9. Bxf5 {[%emt 0:00:00]} gxf5 {[%emt 0:00:37]} 10. O-O {[%emt 0:00:00]} e6 {[%emt 0:05:43]} 11. Nd2 {[%emt 0:00:00]} Nf6 {[%emt 0:02:56]} 12. Nc1 {[%emt 0:00:00]} Be7 {[%emt 0:06:51]} 13. Nd3 {[%emt 0:00:00]} O-O-O {[%emt 0:02:37]} 14. Nf3 {[%emt 0:00:00]} Nd7 {[%emt 0:07:37]} 15. b4 {[%emt 0:00:00]} Rdg8 {[%emt 0:09:48]} 16. a4 {[%emt 0:00:00]} h5 {[%emt 0:03:25]} 17. Qe2 {[%emt 0:00:00]} Rh7 {[%emt 0:06:02]} 18. Nc5 {[%emt 0:00:00]} Nxc5 {[%emt 0:11:04]} 19. dxc5 {[%emt 0:00:00]} Qd8 {[%emt 0:00:13]} 20. a5 {[%emt 0:00:00]} Nb8 {[%emt 0:04:01]} 21. a6 {[%emt 0:00:00]} Qd7 {[%emt 0:08:32]} 22. Ne5 {[%emt 0:00:00]} Qc7 {[%emt 0:01:27]} 23. Nd3 {[%emt 0:00:00]} Qd7 {[%emt 0:01:55]} 24. b5 {[%emt 0:00:00]} Bd8 {[%emt 0:05:51]} 25. b6 {[%emt 0:00:00]} bxa6 {[%emt 0:00:15]} 26. Bxb8 {[%emt 0:00:00]} Kxb8 {[%emt 0:00:15]} 27. Ne5 {[%emt 0:00:00]} Qc8 {[%emt 0:00:48]} 28. Rxa6 {[%emt 0:00:00]} Rhg7 {[%emt 0:00:35]} 29. Rxa7 {[%emt 0:00:00]} Rxg2+ {[%emt 0:00:10]} 30. Kh1 {[%emt 0:00:00]} Bxb6 {[%emt 0:00:24]} 31. cxb6 {[%emt 0:00:00]} Qxc3 {[%emt 0:00:13]} 32. Ra8+ {[%emt 0:00:00]} Kxa8 {[%emt 0:00:42]} 33. Qa6+ {[%emt 0:00:00]} Kb8 {[%emt 0:00:04]} 34. Nd7# {[%emt 0:00:00]} 1-0

[Event "FIDE WCCC Open-12 2024"]
[Site "Montesilvano"]
[Date "2024.11.24"]
[Round "9.7"]
[White "Sahbudak, Baris Cinar"]
[Black "Platonovs, Nikolajs"]
[Result "0-1"]
[ECO "B23"]
[WhiteElo "2264"]
[BlackElo "1969"]
[Annotator "RC"]
[PlyCount "114"]
[EventDate "2024.11.18"]
[EventType "swiss"]
[EventCountry "ITA"]
[SourceTitle "playchess.com"]
[Source "ChessBase"]
[SourceQuality "1"]
[TimeControl "5400+30"]

1. e4 {[%emt 0:00:20]} c5 {[%emt 0:00:04]} 2. Nc3 {[%emt 0:00:18]} d6 {[%emt 0:00:06]} 3. f4 {[%emt 0:00:32]} g6 {[%emt 0:00:10]} 4. Nf3 {[%emt 0:00:22]} Bg7 {[%emt 0:00:09]} 5. Bc4 {[%emt 0:00:36]} Nc6 {[%emt 0:00:09]} 6. O-O {[%emt 0:01:00]} e6 {[%emt 0:00:12]} 7. d3 {[%emt 0:01:31]} Nge7 {[%emt 0:00:10]} 8. Qe1 {[%emt 0:01:38]} O-O {[%emt 0:01:50]} 9. Bb3 {[%emt 0:02:29]} Na5 {[%emt 0:00:47]} 10. Bd2 {[%emt 0:02:16]} Nxb3 {[%emt 0:00:16]} 11. axb3 {[%emt 0:00:02]} b6 {[%emt 0:02:28]} 12. e5 {[%emt 0:05:55]} Bb7 {[%emt 0:03:10]} 13. Ne4 {[%emt 0:05:47]} dxe5 {[%emt 0:07:32]} 14. fxe5 {[%emt 0:00:21]} Bxe4 {[%emt 0:00:11]} 15. Qxe4 {[%emt 0:16:18]} Qd5 {[%emt 0:01:04]} 16. Qe2 {[%emt 0:01:04]} Nc6 {[%emt 0:02:04]} 17. Bc3 {[%emt 0:02:51]} b5 {[%emt 0:04:35]} 18. Rae1 {[%emt 0:06:05]} Rad8 {[%emt 0:02:29]} 19. Kh1 {[%emt 0:08:15]} h6 {[%emt 0:01:47]} 20. Bd2 {[%emt 0:04:28]} Nd4 {[%emt 0:01:33]} 21. Nxd4 {[%emt 0:02:06]} Qxd4 {[%emt 0:01:02]} 22. Bc3 {[%emt 0:01:26]} Qd5 {[%emt 0:01:54]} 23. b4 {[%emt 0:04:52]} c4 {[%emt 0:09:51]} 24. d4 {[%emt 0:01:49]} Rde8 {[%emt 0:01:34]} 25. Qg4 {[%emt 0:03:16]} Kh7 {[%emt 0:01:21]} 26. Rf3 {[%emt 0:05:05]} f5 {[%emt 0:04:03]} 27. Qh4 {[%emt 0:02:40]} g5 {[%emt 0:10:56]} 28. Qh5 {[%emt 0:01:16]} Re7 {[%emt 0:04:25]} 29. Bd2 {[%emt 0:02:54]} f4 {[%emt 0:07:04]} 30. c3 {[%emt 0:01:52]} Rf5 {[%emt 0:00:38]} 31. Bc1 {[%emt 0:00:56]} Bf8 {[%emt 0:03:57]} 32. Rf2 {[%emt 0:02:43]} Ref7 {[%emt 0:01:24]} 33. Kg1 {[%emt 0:01:21]} Rg7 {[%emt 0:05:57]} 34. Qe8 {[%emt 0:01:51]} Re7 {[%emt 0:04:38]} 35. Qh5 {[%emt 0:00:18]} Rg7 {[%emt 0:02:40]} 36. Qe8 {[%emt 0:02:44]} Rff7 {[%emt 0:00:22]} 37. Ref1 {[%emt 0:01:52]} Be7 {[%emt 0:02:05]} 38. Rf3 {[%emt 0:01:15]} a6 {[%emt 0:01:23]} 39. R3f2 {[%emt 0:01:24]} Rf8 {[%emt 0:01:20]} 40. Qh5 {[%emt 0:00:03]} Rf5 {[%emt 0:01:17]} 41. Qe2 {[%emt 0:00:44]} Bd8 {[%emt 0:01:30]} 42. Qc2 {[%emt 0:01:04]} Kh8 {[%emt 0:01:18]} 43. Rf3 {[%emt 0:00:36]} Bb6 {[%emt 0:00:47]} 44. Rh3 {[%emt 0:01:15]} Rh7 {[%emt 0:01:21]} 45. Rhf3 {[%emt 0:03:56]} Qxe5 {[%emt 0:04:24]} 46. R3f2 {[%emt 0:00:33]} Qd5 {[%emt 0:00:39]} 47. Re1 {[%emt 0:00:44]} Rhf7 {[%emt 0:00:49]} 48. Rfe2 {[%emt 0:00:58]} e5 {[%emt 0:00:27]} 49. Qd1 {[%emt 0:00:34]} exd4 {[%emt 0:01:02]} 50. Re6 {[%emt 0:00:09]} R5f6 {[%emt 0:02:21]} 51. Re8+ {[%emt 0:01:01]} Kg7 {[%emt 0:00:07]} 52. Kf1 {[%emt 0:00:32]} f3 {[%emt 0:00:41]} 53. g4 {[%emt 0:00:27]} f2 {[%emt 0:00:12]} 54. R1e4 {[%emt 0:00:02]} Qd6 {[%emt 0:00:52]} 55. R8e5 {[%emt 0:00:48]} dxc3 {[%emt 0:00:20]} 56. Qe2 {[%emt 0:00:25]} Qd3 {[%emt 0:00:34]} 57. bxc3 {[%emt 0:00:17]} Qh3# {[%emt 0:02:59]} 0-1